Cogmind - Beta 16.1 @@@ ROGUE MODE // 2026.04.03 @ 18:39:59 Player: WarMechanic Result: Destroyed by G-47 Trooper with Particle Gun Performance ------------- Evolutions (2) 1000 Regions Visited (5) 1000 Robots Destroyed (94) 470 Value Destroyed (3162) 3162 Prototype IDs (2) 40 Alien Tech Used (0) 0 Bonus (260) 260 TOTAL SCORE: 5932 Bonus ------- High Alert Combat Kills 60 Entered Garrisons 200 Cogmind --------- Core Integrity 0/550 Matter 256/300 Energy 455/455 System Corruption 35% Temperature Hot (295) Movement Rolling (190) Ox6 Location -8/Garrison Parts ------- > --- POWER (2) -------- Improved Ion Engine Improved Deuterium Engine > --- PROPULSION (3) --- Carbon-fiber Leg Carbon-fiber Leg Compact Wheel > --- UTILITY (4) ------ Huge Storage Unit Machine Analyzer Targeting Computer System Shield > --- WEAPON (2) ------- Heavy EM Shotgun Axe > --- INVENTORY (25) --- Light Treads Compact Wheel Huge Storage Unit Improved Sensor Array Improved Signal Interpreter Improved Signal Interpreter Melee Analysis Suite Hardened Medium Armor Plating Shield Generator Relay Coupler [NC] (31) Relay Coupler [Grunt] (26) Trap Extractor (0/4) Improved Trap Extractor (0/6) Improved Recalibrator EMP Blaster Improved Grenade Launcher Improved Grenade Launcher Improved Datajack Flail Katana Axe Axe Peak State ------------ > --- POWER ------------ Light Nuclear Core Light Nuclear Core > --- PROPULSION ------- Light Treads Advanced Treads Compact Wheel > --- UTILITY ---------- Huge Storage Unit Machine Analyzer Hardened Medium Armor Plating System Shield > --- WEAPON ----------- Heavy EM Shotgun Axe > --- INVENTORY -------- Improved Ion Engine Improved Deuterium Engine Light Treads Light Treads Advanced Treads Trap Scanner Improved Sensor Array Improved Signal Interpreter Improved Signal Interpreter Melee Analysis Suite Medium Armor Plating Medium Armor Plating Shield Generator Trap Extractor Improved Trap Extractor Improved Recalibrator Heavy EM Shotgun EMP Blaster Improved Grenade Launcher Improved Grenade Launcher Improved Datajack Flail Katana Axe Axe [Rating: 35] Favorites ----------- Power Improved Ion Engine Engine Improved Ion Engine Power Core Light Nuclear Core Propulsion Light Treads Treads Light Treads Leg Carbon-fiber Leg Wheel Compact Wheel Utility Machine Analyzer Device Improved Trap Extractor Storage Large Storage Unit Processor Machine Analyzer Hackware System Shield Protection Hardened Light Armor Plating Weapon Heavy EM Shotgun Energy Gun Heavy EM Shotgun Ballistic Gun Assault Rifle Launcher EMP Blaster Special Weapon Mining Laser Impact Weapon Hammer Slashing Weapon Axe Build | -11 -10 -10 -9 -8 -8 ------- Run | Yrd Mat Min Mat Mat Gar Slots Evolved 4 | . . . 2 2 . Power 1 | . . . . 1 . Propulsion 1 | . . . 1 . . Utility 2 | . . . 1 1 . Weapon . | . . . . . . Parts Attached 89 | 7 4 2 22 39 15 Power 21 | 1 . . 6 9 5 Engine 14 | 1 . . 5 6 2 Core 7 | . . . 1 3 3 Reactor . | . . . . . . Propulsion 28 | 2 1 1 6 11 7 Treads 17 | 1 . 1 5 9 1 Leg 5 | . . . . . 5 Wheel 6 | 1 1 . 1 2 1 Hover . | . . . . . . Flight . | . . . . . . Utility 17 | 2 2 1 2 9 1 Device 4 | 1 1 1 . 1 . Storage 3 | 1 1 . . 1 . Processor 2 | . . . . 1 1 Hackware 1 | . . . . 1 . Protection 7 | . . . 2 5 . Artifact . | . . . . . . Weapon 23 | 2 1 . 8 10 2 Energy Gun 8 | 1 . . 3 3 1 Energy Cannon . | . . . . . . Ballistic Gun 4 | 1 . . 3 . . Ballistic Cannon . | . . . . . . Launcher 2 | . . . . 2 . Special Weapon 1 | . 1 . . . . Impact Weapon 4 | . . . 1 3 . Slashing Weapon 4 | . . . 1 2 1 Piercing Weapon . | . . . . . . Special Melee Weapon . | . . . . . . Unidentified Prototypes 2 | . . . 1 1 . Corrupted Parts 8 | . . . . 2 6 System Corruption 35 | . . . . 5 30 Parts Lost 30 | . 1 . 4 14 11 Power 8 | . . . 1 5 2 Propulsion 13 | . 1 . 2 4 6 Utility 5 | . . . . 3 2 Weapon 4 | . . . 1 2 1 Highest Loss Streak 6 | . 1 . 2 4 6 To Critical Strikes 1 | . . . . 1 . Average Backups 17 | 5 8 14 14 19 23 Power 1 | . 1 2 1 1 1 Propulsion 2 | 2 2 5 3 2 1 Utility 7 | . 3 5 4 8 12 Weapon 5 | 1 2 1 4 6 7 Tool/Special . | . . . . . . Unused Backups 39 | 1 1 2 10 10 15 Power 4 | . 1 . 1 2 . Propulsion 8 | 1 . . 3 3 1 Utility 17 | . . 1 2 3 11 Weapon 9 | . . 1 4 2 2 Tool/Special 1 | . . . . . 1 Average Slot Usage (%) 95 | . 99 100 95 93 91 Engine 10 | . 13 14 10 11 2 Core 3 | . . . . 4 10 Treads 17 | . 14 14 23 21 9 Leg 2 | . . . . . 11 Wheel 7 | . 13 14 9 4 4 Device 6 | . 14 14 11 3 . Storage 10 | . 14 14 11 9 9 Processor 5 | . . . . 7 12 Hackware 3 | . . . . 3 9 Protection 7 | . . . 10 10 5 Energy Gun 7 | . 12 14 4 7 6 Ballistic Gun 4 | . 13 14 4 . . Impact Weapon 2 | . . . . 6 . Slashing Weapon 5 | . . . 9 2 10 Peak Build Rating 35 | 7 8 12 21 35 35 Average Rating 22 | 6 7 10 18 28 31 On Entrance 13 | . 7 8 12 19 35 Avg Prop Armor Cover (%) 14 | 14 12 12 17 14 14 Naked Turns . | . . . . . . Heaviest Build 112 | 14 29 31 41 112 105 Greatest Support 64 | 16 16 20 60 64 62 Greatest Overweight (x) 11 | 1 1 1 2 11 10 Average Overweight (x) 2 | . . 1 1 4 3 Largest Inventory Capacity 25 | 8 15 15 15 25 25 Average Capacity 18 | 7 10 15 15 21 25 Most Carried 25 | 8 15 15 15 25 25 Average Carried 17 | 5 8 14 14 19 23 Final Capacity 25 | 8 15 15 15 25 25 Final Carried 25 | 8 14 15 15 25 22 Class Distribution -------------------- 71% | Mutant 28% | Scavenger-Mutant Dominant Class ---------------- Mutant | -10/Materials Mutant | -10/Mines Mutant | -9/Materials Mutant | -8/Materials Mutant | -8/Garrison Resources | -11 -10 -10 -9 -8 -8 ----------- Run | Yrd Mat Min Mat Mat Gar Matter Collected 1741 | 315 120 . 389 540 377 Remotely . | . . . . . . Salvage Created 3852 | 183 208 . 967 1773 721 Parts 200 | 23 16 . 58 73 30 Haulers Intercepted 4 | . 1 . . 3 . Recyclers Shooed . | . . . . . . Parts Field Recycled . | . . . . . . Retrieved Matter . | . . . . . . Parts Self-Destructed . | . . . . . . Prevented . | . . . . . . Parts Restored . | . . . . . . Kills | -11 -10 -10 -9 -8 -8 ------- Run | Yrd Mat Min Mat Mat Gar Combat Hostiles Destroyed 73 | . 3 . 23 33 14 Melee 49 | . . . 23 20 6 Guns 7 | . 3 . . . 4 AOE 6 | . . . . 4 2 Classes Destroyed 13 | 3 2 . 3 4 1 Worker 4 | 1 . . 1 2 . Tunneler 8 | 5 2 . . 1 . Hauler 4 | . 1 . . 3 . Recycler 2 | 1 . . . 1 . Mechanic 1 | . . . . 1 . Operator 2 | . . . . 2 . Swarmer 13 | . . . 4 6 3 Grunt 36 | . 3 . 10 15 8 Brawler 1 | . . . 1 . . Duelist 1 | . . . . 1 . Sentry 18 | . . . 8 9 1 Specialist 2 | . . . . 2 . Hunter 2 | . . . . . 2 Best Kill Streak 6 | 2 2 . 6 5 3 Combat Bots Only 5 | . 1 . 5 4 3 Max Kills in Single Turn 2 | 1 2 . 1 2 2 Gunslinging . | . . . . . . Exploded 2 | . . . . 2 1 Melee 2 | . . . 1 1 2 Uniques/NPCs Destroyed . | . . . . . . Combat | -11 -10 -10 -9 -8 -8 -------- Run | Yrd Mat Min Mat Mat Gar Hostile Shots Fired 539 | . 23 . 128 219 169 Missed 106 | . 6 . 17 46 37 Hits 433 | . 17 . 111 173 132 Melee 6 | . . . . 6 . Projectile 427 | . 17 . 111 167 132 Critical Strikes 20 | . . . 6 12 2 Damage Taken 6262 | . 221 86 1339 2740 1876 Core 862 | . 63 . 234 355 210 Absorbed by Shields 63 | . . . . . 63 Redirected to Shielding 210 | . . . . 210 . Regen/Repaired (Parts) 282 | . . . 282 . . Core Remaining (%) 71 | 100 . 74 41 . . Volleys Fired 95 | 15 29 . 8 9 34 Largest 2 | 2 2 . 1 1 1 Hottest 100 | 60 100 . 45 50 50 Shots Fired 145 | 30 56 . 8 11 40 Gun 122 | 30 55 . 8 6 23 Cannon . | . . . . . . Launcher 22 | . . . . 5 17 Special 1 | . 1 . . . . Kinetic 49 | 15 28 . 6 . . Thermal 43 | 15 28 . . . . Explosive 1 | . . . . 1 . Electromagnetic 52 | . . . 2 10 40 Robot Hit Streak 7 | 4 6 . 7 5 5 Robot Miss Streak 3 | 3 3 . 2 3 3 Penetration Max . | . . . . . . Secondary Targets . | . . . . . . Shots Hit Robots 253 | 16 32 . 54 108 43 Core Hits 106 | 8 11 . 24 41 22 Critical Kills 4 | . . . . 4 . Critical Parts Destroyed 10 | . . . . 10 . Critical Strikes 22 | . . . 4 18 . Destroy 1 | . . . 1 . . Smash 14 | . . . . 14 . Sever 7 | . . . 3 4 . Melee Attacks 233 | . . . 64 139 30 Impact 89 | . . . 2 87 . Slashing 144 | . . . 62 52 30 Piercing . | . . . . . . Sneak Attacks 8 | . . . 1 7 . Combat Hostiles 1 | . . . . 1 . Follow-up Attacks 1 | . . . . . 1 Damage Inflicted 7111 | 215 382 . 1662 3240 1612 Guns 1043 | 215 382 . 76 76 294 Cannons . | . . . . . . Explosions 723 | . . . . 130 593 Melee 5345 | . . . 1586 3034 725 Ramming . | . . . . . . Kinetic 423 | 136 211 . 76 . . Thermal 373 | 79 171 . . . 123 Explosive 38 | . . . . 38 . Electromagnetic 932 | . . . . 168 764 Impact 1667 | . . . . 1667 . Slashing 3678 | . . . 1586 1367 725 Piercing . | . . . . . . Highest Corruption 35 | . . 1 . 5 35 Average Corruption 9 | . . 1 . 4 17 Corruption Purged . | . . . . . . Corruption Blocked . | . . . . . . Effects 129 | . . 3 . 64 62 Message Errors 36 | . . . . 21 15 Matter Fused 23 | . . 2 . 11 10 Heat Flow Errors 20 | . . . . 15 5 Energy Discharges 18 | . . 1 . 4 13 Data Loss (minor) 20 | . . . . 10 10 Data Loss (major) 3 | . . . . 1 2 Misfires 8 | . . . . 2 6 Alerts 1 | . . . . . 1 Overload Shots . | . . . . . . Overflow Damage 524 | . . . 47 437 40 Projectiles . | . . . . . . Explosions 57 | . . . . 50 7 Melee 467 | . . . 47 387 33 Knockbacks 4 | . . . . 4 . Impact 4 | . . . . 4 . Kinetic . | . . . . . . Secondary . | . . . . . . Self-Inflicted Damage 211 | . . . . 99 112 Shots 11 | . . . . 4 7 Rammed . | . . . . . . Targets Rammed . | . . . . . . Kicked . | . . . . . . Crushed . | . . . . . . Highest Temperature 302 | . 99 . 237 302 280 Average Temperature 86 | . 49 . 62 93 91 Received Heat Transfer 2388 | . 123 . 552 1053 660 Effects 3 | . . . . 1 2 Interference 3 | . . . . 1 2 Siege Activations . | . . . . . . Martial Activations . | . . . . . . Shielding Activations . | . . . . . . Robots Disrupted . | . . . . . . Combat Hostiles . | . . . . . . Robots Corrupted 12 | . . . . 10 2 Combat Hostiles 11 | . . . . 9 2 Parts Fried 20 | . . . . 17 3 Impact Corruptions 18 | . . . . 18 . Robots Melted . | . . . . . . Combat Hostiles . | . . . . . . Parts Melted . | . . . . . . Heat Transferred 700 | 175 375 . . . 150 Parts Sabotaged . | . . . . . . Parts Stolen . | . . . . . . Parts Stripped . | . . . . . . Power Chain Reactions 4 | . . . . 2 2 Alert | -11 -10 -10 -9 -8 -8 ------- Run | Yrd Mat Min Mat Mat Gar Maximum Alert Level 2 | . . . 1 1 2 Low Security (%) 74 | 100 100 100 73 88 14 Level 1 16 | . . . 26 11 34 Level 2 9 | . . . . . 50 Level 3 . | . . . . . . Level 4 . | . . . . . . Level 5 . | . . . . . . High Security . | . . . . . . Max Security . | . . . . . . Peak Influence 568 | 10 35 1 349 238 568 Initial 138 | . . 1 . 134 138 Average 147 | 1 3 . 100 141 389 Influence Increases 2524 | 35 119 . 742 1088 540 Destroy 0b10 Robot/C 1460 | . 60 . 460 660 280 Destroy 0b10 Robot/NC 110 | 35 15 . 5 50 5 Destroy Leader 328 | . 22 . 130 156 20 Successful Hack 67 | . 6 . 25 36 . Disable Machine 15 | . 15 . . . . Anti-Garrison Action 150 | . . . . . 150 Destroy Structure 34 | . 1 . 2 21 10 Partial Spotted 15 | . . . . 15 . Lose Combat Pursuer 345 | . . . 120 150 75 Influence Decreases 1956 | 35 113 6 423 1194 185 Entered New Map 265 | . . 5 . 185 75 Time Decay 1226 | 35 103 1 368 719 . Lost Part 300 | . 10 . 40 140 110 Purge Threat 165 | . . . 15 150 . Squads Dispatched 8 | . 2 . 2 4 . Investigation 5 | . 1 . 2 2 . Extermination . | . . . . . . Reinforcement 3 | . 1 . . 2 . Assault . | . . . . . . Garrison . | . . . . . . Intercept . | . . . . . . Searches Triggered . | . . . . . . Construction Impeded . | . . . . . . Haulers Reinforced . | . . . . . . Active Scanning Responses . | . . . . . . Cargo Convoy Interrupts . | . . . . . . Stealth | -11 -10 -10 -9 -8 -8 --------- Run | Yrd Mat Min Mat Mat Gar Distress Signals 9 | . 1 . 5 3 . Communications Jammed . | . . . . . . Distress Signals . | . . . . . . Times Spotted 122 | . 12 . 35 55 20 Peak Tracking Total 8 | . 5 . 8 6 3 Tactical Retreats 15 | . . . 5 7 3 Traps | -11 -10 -10 -9 -8 -8 ------- Run | Yrd Mat Min Mat Mat Gar Traps Triggered 12 | . 3 1 . . 8 Indirectly 4 | . . . . . 4 Trap Hack Attempts . | . . . . . . Triggered . | . . . . . . Disarmed . | . . . . . . Reprogrammed . | . . . . . . Reused . | . . . . . . Traps Extracted . | . . . . . . Installed . | . . . . . . Triggered . | . . . . . . Machines | -11 -10 -10 -9 -8 -8 ---------- Run | Yrd Mat Min Mat Mat Gar Machines Disabled 2 | . 1 . . . 1 Max in Single Turn 1 | . 1 . . . 1 Garrison Relay 1 | . . . . . 1 Machines Repaired . | . . . . . . Machines Dismantled . | . . . . . . Machines Sabotaged . | . . . . . . Overloaded Fab Kills . | . . . . . . Hacking | -11 -10 -10 -9 -8 -8 --------- Run | Yrd Mat Min Mat Mat Gar Machines Accessed 25 | . 3 1 11 10 . Terminals 17 | . 3 . 7 7 . Fabricators . | . . . . . . Repair Stations 3 | . . . 2 1 . Recycling Units . | . . . . . . Scanalyzers 3 | . . . 2 1 . Garrison Access 1 | . . . . 1 . Total Hacks 88 | . 12 1 44 31 . Successful 37 | . 4 1 18 14 . Failed 51 | . 8 . 26 17 . Catastrophic 9 | . 1 . 2 6 . Database Lockouts . | . . . . . . Manual 49 | . 10 . 20 19 . Terminals 52 | . 12 . 20 20 . Fabricators . | . . . . . . Repair Stations 16 | . . . 15 1 . Recycling Units . | . . . . . . Scanalyzers 18 | . . . 9 9 . Garrison Access 1 | . . . . 1 . Terminal Hacks 16 | . 4 1 4 7 . Part Schematic 1 | . . . . 1 . Robot Analysis 1 | . 1 . . . . Open Door 1 | . . 1 . . . Level Access Points 1 | . . . . 1 . Terminal Index 3 | . 1 . 1 1 . Unreport Threat 2 | . . . 1 1 . Locate Traps 1 | . . . 1 . . Dispatch Records 1 | . . . 1 . . Patrol Status 2 | . 1 . . 1 . Zone Layout 3 | . 1 . . 2 . Fabricator Hacks . | . . . . . . Repair Station Hacks 10 | . . . 10 . . Scan Component 5 | . . . 5 . . Repair 5 | . . . 5 . . Recycling Unit Hacks . | . . . . . . Scanalyzer 10 | . . . 4 6 . Insert Component 5 | . . . 2 3 . Analyze 4 | . . . 1 3 . Retrieve Study 1 | . . . 1 . . Garrison Access Hacks 1 | . . . . 1 . Unlock Access 1 | . . . . 1 . Unauthorized Hacks . | . . . . . . Terminals . | . . . . . . Fabricators . | . . . . . . Repair Stations . | . . . . . . Recycling Units . | . . . . . . Scanalyzers . | . . . . . . Garrison Access . | . . . . . . Data Cores Recovered 2 | . . . 1 1 . Used 1 | . . . 1 . . Hacking Detections 21 | . 2 . 11 8 . Full Trace Events 5 | . 1 . 2 2 . Feedback Events . | . . . . . . Feedback Blocked . | . . . . . . Robot Schematics Acquired . | . . . . . . Robots Built . | . . . . . . Authchips . | . . . . . . Time . | . . . . . . Total Robot Build Rating . | . . . . . . Part Schematics Acquired 5 | . . . 1 4 . Parts Built . | . . . . . . Authchips . | . . . . . . Time . | . . . . . . Total Part Build Rating . | . . . . . . Part Studies Acquired . | . . . . . . Parts Repaired 5 | . . . 5 . . Time 160 | . . . 160 . . Parts Recycled . | . . . . . . Recycled Matter . | . . . . . . Retrieved Matter . | . . . . . . Retrieved Components . | . . . . . . Parts Scanalyzed 4 | . . . 1 3 . Part Schematics Acquired 4 | . . . 1 3 . Parts Damaged . | . . . . . . Bothacking | -11 -10 -10 -9 -8 -8 ------------ Run | Yrd Mat Min Mat Mat Gar Used RIF Installer . | . . . . . . Robots Hacked . | . . . . . . Non-combat . | . . . . . . Combat . | . . . . . . Robot Hacks Applied . | . . . . . . Relay Couplers Released 3 | . . . . . 3 Machine Destruction 3 | . . . . . 3 Fabnet Peak Effective % . | . . . . . . Robots Rewired . | . . . . . . Allies Hacked . | . . . . . . Hacks Repelled . | . . . . . . Allies | -11 -10 -10 -9 -8 -8 -------- Run | Yrd Mat Min Mat Mat Gar Total Allies . | . . . . . . Largest Group . | . . . . . . Highest-Rated Group . | . . . . . . Highest-Rated Ally . | . . . . . . Total Orders . | . . . . . . Ally Attacks . | . . . . . . Total Damage . | . . . . . . Kills . | . . . . . . Allies Corrupted . | . . . . . . Allies Melted . | . . . . . . Intel | -11 -10 -10 -9 -8 -8 ------- Run | Yrd Mat Min Mat Mat Gar Active Infowar (turns) 5109 | 118 1175 204 . 1886 1726 Seismic 1497 | 118 1175 204 . . . Machine Analysis 3612 | . . . . 1886 1726 Robot Analysis Total 1 | . 1 . . . . Derelict Logs Recovered 1 | . . 1 . . . Drone Launches . | . . . . . . Drone Recoveries . | . . . . . . Exploration | -11 -10 -10 -9 -8 -8 ------------- Run | Yrd Mat Min Mat Mat Gar Turns Passed 9121 | 194 1177 763 1890 3369 1728 Spaces Moved 3874 | 131 306 591 936 1251 659 Core 5 | 5 . . . . . Treads 855 | . . 15 133 636 71 Legs 263 | . . . . . 263 Wheels 2751 | 126 306 576 803 615 325 Hover . | . . . . . . Flight . | . . . . . . Fastest Speed 50 | 50 100 115 115 125 175 Average Speed 161 | 99 106 118 134 194 211 Slowest Speed 820 | 100 115 240 160 465 820 Overloaded Moves . | . . . . . . Propulsion Burnouts . | . . . . . . Robots Hopped . | . . . . . . Potential Cave-ins . | . . . . . . Cave-ins Triggered . | . . . . . . Exploration Rate (%) 54 | 4 36 98 56 74 59 Regions Visited 5 Branch Regions 1 Pre-discovered Areas . | . . . . . . Known Exits Taken 1 | . . . . 1 . Unknown Exits Taken 4 | 1 1 1 1 . . Scrap Searched . | . . . . . . Spaces Dug 9 | . . . 2 7 . Terrain Destroyed 30 | . . . 2 28 . Melee 9 | . . . 2 7 . Projectile . | . . . . . . AOE 21 | . . . . 21 . Terrain Rammed . | . . . . . . Walls Destroyed . | . . . . . . Machines Disabled . | . . . . . . Actions | -11 -10 -10 -9 -8 -8 --------- Run | Yrd Mat Min Mat Mat Gar Total 6256 | 162 1097 657 1476 1964 900 Wait 1729 | . 742 52 387 440 108 Move 3869 | 130 305 590 935 1250 659 Hop . | . . . . . . Pick Up 95 | 9 9 7 25 37 8 Fast Attach 37 | 7 4 . 7 11 8 Attach 22 | . 1 . 4 10 7 Detach 1 | . . . . . 1 Swap 67 | . 4 2 18 31 12 Drop 82 | 1 3 6 28 37 7 Fire 95 | 15 29 . 8 9 34 Melee 232 | . . . 64 139 29 Ram . | . . . . . . Kick . | . . . . . . Crush . | . . . . . . Escape Stasis 27 | . . . . . 27 Rewire . | . . . . . . Trap . | . . . . . . Miscellaneous . | . . . . . . Route ------- -11/Scrapyard -10/Materials -10/Mines (discovered 2 exits: *Mat x2) -9/Materials (discovered 2 exits: *Mat / [*Sto]) -8/Materials (discovered 4 exits: *Fac x3 / Gar) -8/Garrison (discovered 2 exits: [*Mat x2]) History --------- Turn | Location | Event 10 | -11/Scrapyard | Discovered new exit (range 15) 195 | -11/Scrapyard | Entered Materials 325 | -10/Materials | Build established: Mutant 995 | -10/Materials | Discovered new exit (range 14) 1372 | -10/Materials | Entered Mines 1569 | -10/Mines | Met a Derelict who couldn't figure out how to use a Trap Extractor 1825 | -10/Mines | Discovered new exit (range 15) 2036 | -10/Mines | Learned Materials emergency access door positions 2052 | -10/Mines | Discovered new exit (range 9) 2135 | -10/Mines | Entered Materials 2135 | -9/Materials | Evolved 2 slots: Propulsion x1, Utility x1 2452 | -9/Materials | Discovered new exit (range 8) 2906 | -9/Materials | Discovered new exit (range 10) 3059 | -9/Materials | Repaired Spread Laser 3098 | -9/Materials | Repaired Katana 3125 | -9/Materials | Repaired Com. Wheel 3621 | -9/Materials | Repaired Hvy. EM Pulse Gun 3655 | -9/Materials | Repaired Hrd. Light Armor Plating 3737 | -9/Materials | Core integrity fell below 50% 4025 | -9/Materials | Entered another Materials area 4025 | -8/Materials | Evolved 2 slots: Power x1, Utility x1 4805 | -8/Materials | Lost 4 parts (1p1n1u1w) 5501 | -8/Materials | Build established: Scavenger-Mutant 6881 | -8/Materials | Build established: Mutant 6917 | -8/Materials | Core integrity fell below 50% 7112 | -8/Materials | Identified exit to Factory 7278 | -8/Materials | Identified exit to Garrison 7394 | -8/Materials | Entered Garrison 7580 | -8/Garrison | Triggered checkpoint 7826 | -8/Garrison | Garrison Relay disabled 7832 | -8/Garrison | Triggered checkpoint 7953 | -8/Garrison | Core integrity fell below 20% 8269 | -8/Garrison | System corruption reached 10% 8352 | -8/Garrison | Triggered checkpoint 8432 | -8/Garrison | Lost 6 parts (2p2n1u1w) 8604 | -8/Garrison | Discovered new exit (range 11) 8698 | -8/Garrison | Build established: Scavenger-Mutant 8851 | -8/Garrison | Discovered new exit (range 12) 8889 | -8/Garrison | System corruption reached 30% 9106 | -8/Garrison | Triggered checkpoint 9122 | -8/Garrison | Destroyed by G-47 Trooper with Particle Gun Last Messages --------------- 09063_ Stasis field depleted. 09065_ 09122_ Stasis field depleted. Map ----- +----------------------------------------------------+ | % =% #???????????????????????????????? | | # ## ## ###???????????????????????????????? | | # ## ## ############??????????????????????? | | # #??????????????????????? | | # #???????####???????????? | | # #?????### ###?????????? | | # ##""""############# #?????#"# #?????????? | | T #?????????????????# #?????#" #?????????? | | # #?????????????????# #?????# ! #?????????? | | # #?????????????????# #?????# ! #?????????? | | # #?????????????????# #?????#"# #?????????? | | # #?????????????????# #?????### ###???####??? | | # #?????????????????# #########*!#######!!##?? | | # #?????????????????# * =% ## !#?? | | #?????????????????# =! !#?? | | #?????????????????# ##################!!##?? | | #?????????????????# #????????????????####??? | | #####?????????????????# #??????????????????????? | | ??????????????????????# #??????????????????????? | | ??????????????????????# #??????????????????????? | | ??????????????????????# #??????????????????????? | | ??????????????????????# #??????????????????????? | | ????????????????????### #??????????????????????? | | ????????????????# ### #??????????????????????? | | ????????????????# ;g #??????????????????????? | | ????????????????????#g ^ @#??????????????????????? | | ????????????????????### ^#??????????????????????? | | ??????????????????????# #??????????????????????? | | ??????????????????????# #??????????????????????? | | ??????????????????????# #??????????????????????? | | ??????????????????????# #??????????????????????? | | ??????????????????????# #??????????????????????? | | ??????????????????????# #??????????????????????? | | ??????????????????????# #??????????????????????? | | ??????????????????????# ???????????????????????? | | ??????????????????????# ???????????????????????? | | ??????????????????????# ???????????????????????? | | ??????????????????????# ???????????????????????? | | ??????????????????????####???????????????????????? | | ?????????????????????????????????????????????????? | | ?????????????????????????????????????????????????? | | ?????????????????????????????????????????????????? | | ?????????????????????????????????????????????????? | | ?????????????????????????????????????????????????? | | ?????????????????????????????????????????????????? | | ?????????????????????????????????????????????????? | | ?????????????????????????????????????????????????? | | ?????????????????????????????????????????????????? | | ?????????????????????????????????????????????????? | | | +----------------------------------------------------+ Best States ------------- Heat Dissipation 31 Energy Generation 23 Energy Capacity 455 Matter Stores 300 Matter Capacity 300 Sight Range 16 Terrain Scan Density 10 Armor Coverage 450 Propulsion Shielding 66 Weapon Shielding 66 Evasion (%) 40 Targeting Accuracy 5 Recoil Reduction 3 Defensive Hacking 10 Trap Extractor Capacity 6 Item Schematics ----------------- Imp. Datajack | -9/Materials | Scanalyzed Katana | -8/Materials | Scanalyzed System Shield | -8/Materials | Scanalyzed Imp. Trap Extractor | -8/Materials | Scanalyzed Hacking Suite | -8/Materials | Hacked Robot Schematics ------------------ None Fabricated ------------ Nothing Repaired ---------- Spread Laser | 58% | -9/Materials Katana | 76% | -9/Materials Com. Wheel | 36% | -9/Materials Hvy. EM Pulse Gun | 12% | -9/Materials Hrd. Light Armor Plating | 3% | -9/Materials Studied --------- None Alien Tech Used ----------------- None Achievements -------------- Ambidextrous Heavy Suspicion Challenges ------------ None Game ------ Seed CobblerGrenadeSuite Manual? 0 Play Time 01:27:10 Cumulative 30.5 hours Start 2026.04.03 @ 16:35:13 End 2026.04.03 @ 18:39:59 Sessions 3 Manual Loads 0 Difficulty Rogue Special Mode None Game No. 37 Rogue 37 Adventurer 0 Explorer 0 Win Type - Total 0 Types 0/0/0/0/0/0/0/0/0/0 Lore% 9 Gallery% 14 Achievement% 14 Wizard Run 0 Options --------- Layout 1 ASCII 0 Keyboard 1 Movement Arrows Keybinds 1 Fullscreen 1 Font 24/Smallcaps Map View 50x35 Zoom Use 0% Tactical HUD 1 Map Filters NONE Filters NONE Steam 1 RUN: cc8f80df-91e6-45c5-addb-c301f8a600fa